bitfinex/quotes_SOLUSD_20240726
["timestamp","ask_amount","ask_price","bid_price","bid_amount"]
[1721989907778,0.8106607,179.62,179.59,32.9584]
[1721989908171,0.8106607,179.62,179.57,5.5685]
[1721989908390,0.8106607,179.62,179.58,5.5682]
[1721989908584,0.8106607,179.62,179.59,5.5681]
[1721989908786,0.8106607,179.62,179.6,5.5678]
[1721989908996,0.8106607,179.62,179.6,5.5679]
[1721989909211,0.8106607,179.62,179.59,19.488]
[1721989909411,0.8106607,179.62,179.6,5.5678]
[1721989910683,0.8106607,179.62,179.61,5.5676]
[1721989910902,0.8106607,179.62,179.61,19.0376]
[1721989911903,0.8106607,179.62,179.61,5.5676]
[1721989913885,0.8106607,179.62,179.61,19.0376]
[1721989915808,0.8106607,179.62,179.61,5.5676]
[1721989920108,0.8106607,179.62,179.61,19.0376]
[1721989921013,0.8106607,179.62,179.61,5.5676]
[1721989921991,0.8106607,179.62,179.6,5.5678]
[1721989922809,0.8106607,179.62,179.61,5.5676]
[1721989923715,0.8106607,179.62,179.61,19.0376]
[1721989924208,0.8106607,179.62,179.61,5.5676]
[1721989924919,0.8106607,179.62,179.61,20.1509018]
[1721989925516,0.8106607,179.62,179.61,19.0376]
[1721989926099,0.8106607,179.62,179.61,20.15084444]
[1721989926707,0.8106607,179.62,179.61,19.0376]
[1721989927511,0.8106607,179.62,179.61,20.15073072]
[1721989929700,0.8106607,179.62,179.61,36.04833072]
[1721989929895,0.8106607,179.62,179.61,81.04833072]
[1721989931613,13.47,179.74,179.68,27.3832]
[1721989931800,13.47,179.74,179.7,5.5648]
[1721989932103,13.47,179.73,179.69,5.565]
[1721989932297,5.5636,179.74,179.68,13.9132]
[1721989932298,13.47,179.74,179.7,5.5647]
[1721989932713,25.4543,179.75,179.7,5.5647]
[1721989933106,5.5636,179.74,179.7,5.5647]
[1721989933509,5.5639,179.73,179.68,13.9132]
[1721989933722,19.0339,179.73,179.68,19.4786]
[1721989933919,13.47,179.7,179.65,13.9156]
[1721989934221,13.47,179.69,179.65,19.4818]
[1721989934530,13.47,179.68,179.65,13.9156]
[1721989934819,13.47,179.68,179.65,19.4819]
[1721989935027,15.7405,179.72,179.67,5.5657]
[1721989935213,13.47,179.7,179.67,5.5657]
[1721989937020,13.47,179.7,179.66,5.566]
[1721989937810,19.0348,179.7,179.65,19.4818]
[1721989938411,19.0354,179.68,179.63,19.0368]
[1721989939010,5.5641,179.73,179.68,5.5651]
[1721989939217,19.0336,179.74,179.69,5.565]
[1721989940325,19.0336,179.74,179.69,19.035]
[1721989941525,5.5639,179.73,179.68,32.9482]
[1721989942325,5.5639,179.73,179.68,19.4782]
[1721989942512,5.5639,179.73,179.68,32.9482]
[1721989942703,19.0339,179.73,179.68,32.9482]
[1721989943416,5.5639,179.73,179.68,32.9482]
[1721989945007,5.5639,179.73,179.69,13.47]
[1721989946227,5.5634,179.75,179.69,19.0349]
[1721989946407,19.0336,179.74,179.69,19.0349]
[1721989947731,5.5636,179.74,179.69,19.0349]
[1721989949119,19.0336,179.74,179.69,5.5649]
[1721989950619,19.0336,179.74,179.68,13.9129]
[1721989950620,5.5642,179.72,179.68,13.9129]
[1721989950828,5.5642,179.72,179.68,27.3829]
[1721989951022,5.5639,179.73,179.68,32.9482]
[1721989951235,19.0336,179.74,179.69,19.0348]
[1721989953728,13.47,179.74,179.68,27.3829]
[1721989954030,19.0342,179.72,179.68,13.9129]
[1721989954432,19.0342,179.72,179.67,5.5655]
[1721989954633,13.47,179.71,179.68,5.5654]
[1721989955315,13.47,179.72,179.68,5.5654]
[1721989956133,5.5633,179.75,179.7,5.5646]
[1721989956437,13.47,179.73,179.7,5.5646]
[1721989959143,5.5633,179.75,179.71,5.5645]
[1721989959144,13.47,179.74,179.71,5.5645]
[1721989962130,13.47,179.74,179.7,5.5647]
[1721989967444,8.72683355,179.77,179.72,13.47]
[1721989967651,8.72683355,179.77,179.74,5.5635]
[1721989967866,8.72683355,179.77,179.76,19.0329]
[1721989968144,0.8106607,179.8,179.78,5.5622]
[1721989968452,0.8106607,179.8,179.79,13.47]
[1721989968757,0.8106607,179.8,179.78,13.47]
[1721989969237,0.8106607,179.8,179.78,19.0322]
[1721989969547,0.8106607,179.8,179.76,13.9073]
[1721989969726,0.8106607,179.8,179.77,13.47]
[1721989970223,0.8106607,179.8,179.78,13.47]
[1721989970645,6.3724607,179.8,179.74,21.6772]
[1721989970853,6.3724607,179.8,179.77,13.47]
[1721989972856,0.8106607,179.8,179.77,13.47]
[1721989974345,6.3724607,179.8,179.75,5.5632]
[1721989974540,13.47,179.79,179.74,49.0555]
[1721989974739,13.47,179.77,179.74,16.1137]
[1721989975435,0.8106607,179.8,179.71,13.9111]
[1721989975436,13.47,179.75,179.71,13.9111]
[1721989975643,13.47,179.74,179.71,13.9111]
[1721989977163,7.4289607,179.8,179.68,29.0005]
[1721989977164,13.47,179.73,179.68,29.0005]
[1721989977376,13.47,179.72,179.68,29.0005]
[1721989978068,13.47,179.72,179.68,34.5657]
[1721989980138,19.0342,179.72,179.68,29.0005]
[1721989980344,13.47,179.71,179.67,5.5656]
[1721989980545,13.47,179.7,179.66,5.566]
[1721989980766,13.47,179.7,179.67,5.5657]
[1721989981661,5.5639,179.73,179.68,5.5653]
[1721989981859,13.47,179.72,179.68,5.5653]
[1721989982464,13.47,179.72,179.69,5.565]
[1721989982658,5.5633,179.75,179.7,5.5646]
[1721989982854,13.47,179.73,179.7,5.5646]
[1721989983042,13.47,179.74,179.7,5.5646]
[1721989983245,13.47,179.74,179.69,5.565]
[1721989983246,13.47,179.72,179.69,5.565]
[1721989983444,13.47,179.7,179.64,13.9164]
[1721989983648,13.47,179.68,179.64,13.9164]
[1721989983855,13.47,179.7,179.67,5.5657]
[1721989984048,13.47,179.7,179.68,5.5654]
[1721989984249,13.47,179.71,179.68,5.5654]
[1721989985777,13.47,179.72,179.68,5.5654]
[1721989985951,5.5639,179.73,179.67,13.47]
[1721989986272,13.47,179.72,179.68,5.5651]
[1721989986447,19.0339,179.73,179.68,19.0351]
[1721989987054,5.5642,179.72,179.68,13.47]
[1721989987263,13.47,179.71,179.67,5.5657]
[1721989987640,5.5642,179.72,179.67,5.5657]
[1721989987857,13.47,179.71,179.67,5.5657]
[1721989988457,13.47,179.71,179.68,5.5654]
[1721989988650,13.47,179.72,179.68,5.5654]
[1721989989861,8.72485814,179.76,179.69,14.58282705]
[1721989990069,13.47,179.75,179.69,13.47]
[1721989990254,13.47,179.74,179.68,27.383]
[1721989990449,13.47,179.73,179.69,5.5651]
[1721989990650,19.0336,179.74,179.69,5.5651]
[1721989991351,5.5639,179.73,179.69,5.5651]
[1721989991948,19.0336,179.74,179.69,5.5651]
[1721989992578,5.564,179.73,179.68,27.383]
[1721989992749,5.564,179.73,179.68,32.9483]
[1721989994059,19.0336,179.74,179.68,32.9483]
[1721989994258,19.0336,179.74,179.69,13.47]
[1721989994556,19.0336,179.74,179.69,6.67771902]
[1721989994557,5.5636,179.74,179.69,6.67771902]
[1721989994867,13.9063,179.78,179.7,19.0347]
[1721989994868,19.0333,179.75,179.7,19.0347]
[1721989995071,19.0333,179.75,179.7,5.5647]
[1721989996053,19.0336,179.74,179.69,14.58271902]
[1721989996253,13.47,179.75,179.7,5.5647]
[1721989996553,5.5632,179.75,179.71,13.47]
[1721989996966,19.0332,179.75,179.7,34.3368]
[1721989997173,19.0332,179.75,179.7,15.3021]
[1721989997360,19.0336,179.74,179.7,15.3021]
[1721989998261,19.0333,179.75,179.7,15.3021]
[1721989998575,19.0344,179.72,179.66,15.486]
[1721989998882,19.0344,179.72,179.66,28.956]
[1721989999251,19.0344,179.72,179.67,5.5654]
[1721989999653,5.5644,179.72,179.67,5.5654]
[1721989999953,13.47,179.72,179.68,5.5654]
[1721990000356,19.0342,179.72,179.67,5.5656]
[1721990000552,13.47,179.7,179.66,21.052]
[1721990000756,13.47,179.7,179.65,13.9158]
[1721990000757,13.47,179.69,179.65,19.4821]
[1721990001159,13.47,179.68,179.65,13.9158]
[1721990001348,13.47,179.68,179.65,19.4821]
[1721990002473,13.47,179.68,179.66,5.566]
[1721990002667,13.47,179.69,179.66,5.566]
[1721990002869,20.4227,179.74,179.65,13.9158]
[1721990002870,13.47,179.7,179.65,28.49886115]
[1721990003074,13.47,179.71,179.68,5.5652]
[1721990004392,13.47,179.7,179.67,13.9138]
[1721990004589,13.47,179.69,179.67,13.9138]
[1721990005277,13.47,179.69,179.66,5.566]
[1721990008160,5.5645,179.71,179.66,5.566]
[1721990008361,13.47,179.7,179.66,5.566]
[1721990009788,13.47,179.7,179.67,5.5657]
[1721990012091,5.5642,179.72,179.65,1.11304291]
[1721990012092,13.47,179.71,179.68,6.67835518]
[1721990012391,13.47,179.7,179.68,5.5654]
[1721990012779,13.47,179.7,179.66,13.9144]
[1721990012780,13.47,179.7,179.67,5.5656]
[1721990013273,13.47,179.7,179.66,19.4804]
[1721990013481,13.47,179.69,179.66,19.4804]
[1721990013790,13.47,179.7,179.67,5.5657]
[1721990014093,13.47,179.71,179.68,6.67833554]
[1721990014572,13.47,179.71,179.68,5.5653]
[1721990015794,13.47,179.71,179.66,27.3844]
[1721990017098,13.47,179.71,179.68,5.5654]
[1721990017892,13.47,179.71,179.67,5.5656]
[1721990019102,13.47,179.7,179.66,13.9144]
[1721990019483,19.0348,179.7,179.66,13.9144]
[1721990019791,19.0348,179.7,179.67,1.11304328]
[1721990020280,13.47,179.71,179.66,13.9144]
[1721990020488,13.47,179.71,179.67,5.5655]
[1721990020674,13.47,179.71,179.68,1.11293321]
[1721990021978,5.5639,179.73,179.68,5.5653]
[1721990022186,13.47,179.71,179.68,5.5653]
[1721990022369,13.47,179.71,179.67,5.5657]
[1721990022775,13.47,179.71,179.68,5.5653]
[1721990022983,13.47,179.71,179.67,5.5656]
[1721990023710,13.47,179.71,179.66,13.9144]
[1721990023711,13.47,179.7,179.66,19.4804]
[1721990025074,5.5646,179.71,179.66,19.4804]
[1721990025075,13.47,179.69,179.66,19.4804]
[1721990025275,13.47,179.69,179.66,13.9144]
[1721990025679,13.47,179.69,179.66,19.4803]
[1721990025892,13.47,179.68,179.66,19.4803]
[1721990027716,13.47,179.67,179.62,15.0151]
[1721990028011,13.47,179.63,179.6,19.4872]
[1721990028371,13.47,179.62,179.6,19.4872]
[1721990028595,13.47,179.62,179.6,13.9194]
[1721990028790,13.47,179.61,179.58,5.5685]
[1721990028999,13.47,179.59,179.57,13.9218]
[1721990029296,13.47,179.59,179.57,19.4906]
[1721990029674,13.47,179.58,179.56,5.5691]
[1721990029881,6.3363,179.68,179.57,13.9217]
[1721990030084,6.3363,179.68,179.54,13.47]
[1721990030085,6.3363,179.68,179.56,13.47]
[1721990030292,6.3363,179.68,179.62,5.5673]
[1721990030603,13.47,179.64,179.62,5.5673]
[1721990030802,13.47,179.64,179.61,5.5675]
[1721990031009,13.47,179.64,179.6,13.9194]
[1721990031193,13.47,179.65,179.63,5.5669]
[1721990031503,13.47,179.67,179.63,5.5669]
[1721990031911,5.5654,179.68,179.63,5.5669]
[1721990032300,13.47,179.67,179.63,5.5669]
[1721990032505,13.47,179.68,179.64,5.5664]
[1721990032889,13.47,179.67,179.64,5.5664]
[1721990033108,13.47,179.67,179.62,27.3876]
[1721990033304,13.47,179.66,179.62,13.9176]
[1721990033609,13.47,179.66,179.62,19.4848]
[1721990035610,13.47,179.66,179.63,5.5669]
[1721990037032,67.35,179.64,179.54,15.2488]
[1721990037189,13.47,179.57,179.54,15.2488]
[1721990037386,13.47,179.57,179.55,5.5691]
[1721990037611,13.47,179.57,179.54,15.2488]
[1721990037829,5.5679,179.6,179.53,19.4946]
[1721990037830,13.47,179.56,179.53,19.4946]
[1721990038018,13.47,179.56,179.54,5.5696]
[1721990038210,13.47,179.56,179.53,19.4948]
[1721990038401,13.47,179.56,179.54,5.5697]
[1721990038732,13.47,179.56,179.53,13.9248]
[1721990039105,13.47,179.57,179.53,13.9248]
[1721990039522,13.47,179.57,179.53,19.4945]
[1721990040235,13.47,179.57,179.54,5.5697]
[1721990040827,13.47,179.57,179.53,13.9248]
[1721990041044,5.5679,179.6,179.53,13.9248]
[1721990041328,13.47,179.57,179.53,13.9248]
[1721990041503,13.47,179.57,179.55,5.5694]
[1721990042524,13.47,179.58,179.55,5.5694]
[1721990043098,5.5679,179.6,179.55,5.5694]
[1721990043302,13.9169,179.64,179.55,5.5694]
[1721990043303,13.47,179.59,179.55,5.5694]
[1721990043526,13.47,179.6,179.55,5.5694]
[1721990043916,5.5671,179.63,179.57,13.47]
[1721990044105,19.0371,179.63,179.57,13.47]
[1721990044313,13.47,179.62,179.57,19.0388]
[1721990044617,13.47,179.61,179.57,5.5688]
[1721990045122,19.0377,179.61,179.56,30.2771]
[1721990045330,13.47,179.6,179.56,30.2771]
[1721990046114,19.0376,179.61,179.56,35.8461]
[1721990048745,19.0379,179.6,179.56,30.2771]
[1721990049534,6.137,179.65,179.57,13.47]
[1721990049734,19.0374,179.62,179.57,19.0387]
[1721990049909,19.0374,179.62,179.57,5.5687]
[1721990049910,13.47,179.61,179.57,5.5687]
[1721990050109,19.0376,179.61,179.56,19.4919]
[1721990052336,13.47,179.6,179.56,19.4919]
[1721990052543,13.47,179.6,179.57,5.5688]
[1721990053409,13.47,179.61,179.57,5.5688]
[1721990053613,13.47,179.6,179.56,19.4919]
[1721990053840,13.47,179.6,179.56,13.9228]
[1721990054045,13.47,179.61,179.57,5.5686]
[1721990054342,19.0373,179.62,179.58,5.5685]
[1721990054930,13.47,179.62,179.58,5.5685]
[1721990055434,19.0377,179.61,179.56,27.3928]
[1721990055611,13.47,179.6,179.56,19.4917]
[1721990056417,19.0377,179.61,179.56,32.9617]
[1721990056822,19.0373,179.62,179.57,5.5688]
[1721990057119,5.5665,179.65,179.6,19.0378]
[1721990057341,5.566,179.67,179.62,19.037]
[1721990057544,5.5654,179.68,179.63,13.47]
[1721990058047,5.5654,179.68,179.63,19.0369]
[1721990058213,5.5655,179.68,179.63,19.0369]
[1721990058413,8.72959664,179.71,179.64,13.47]
[1721990058643,13.47,179.72,179.67,13.47]
[1721990058829,13.9075,179.76,179.71,5.5642]
[1721990058830,8.72651254,179.76,179.71,5.5642]
[1721990059047,8.72651254,179.76,179.73,15.0138]
[1721990059343,13.47,179.77,179.73,15.0138]
[1721990059750,9.53487378,179.8,179.7,13.912]
[1721990059751,19.0333,179.75,179.7,32.9468]
[1721990059930,19.0333,179.75,179.7,19.4768]
[1721990060254,13.47,179.75,179.71,5.5644]
[1721990060463,9.53487378,179.8,179.72,27.3798]
[1721990060627,9.53487378,179.8,179.75,5.5629]
[1721990060628,13.47,179.79,179.75,5.5629]
[1721990060823,0.8106607,179.8,179.74,13.47]
[1721990061026,0.8106607,179.8,179.76,13.47]
[1721990061267,0.8106607,179.8,179.79,5.562]
[1721990061556,14.2806607,179.8,179.75,5.563]
[1721990061847,13.47,179.79,179.76,5.5627]
[1721990062225,0.8106607,179.8,179.76,5.5627]
[1721990062456,0.8106607,179.8,179.77,5.5625]
[1721990063127,0.8106607,179.8,179.76,13.9074]
[1721990063351,6.3726607,179.8,179.74,5.5635]
[1721990063550,0.8106607,179.8,179.76,5.5628]
[1721990065357,0.8106607,179.8,179.77,5.5626]
[1721990065745,0.8106607,179.8,179.75,13.9081]
[1721990065925,0.8106607,179.8,179.75,19.4713]
[1721990067547,6.3723607,179.8,179.75,19.4713]
[1721990068725,5.562,179.79,179.75,13.9081]
[1721990069657,6.3724607,179.8,179.75,19.4713]
[1721990069841,0.8106607,179.8,179.75,13.9081]
[1721990070046,0.8106607,179.8,179.77,5.5624]
[1721990072151,0.8106607,179.8,179.75,13.9081]
[1721990072152,0.8106607,179.8,179.78,5.5623]
[1721990073131,0.8106607,179.8,179.79,5.562]
[1721990076370,0.8106607,179.8,179.79,6.6741056]
[1721990076663,0.8106607,179.8,179.79,22.2918056]
[1721990077043,0.8106607,179.8,179.79,21.1797]
[1721990078441,0.8106607,179.8,179.79,5.562]
[1721990079171,0.8106607,179.8,179.78,5.5623]
[1721990079332,0.8106607,179.8,179.78,5.5622]
[1721990080465,0.8106607,179.8,179.79,5.562]
[1721990081642,0.8106607,179.8,179.77,13.9061]
[1721990082271,0.8106607,179.8,179.78,5.5623]
[1721990085669,0.8106607,179.8,179.78,5.5622]
[1721990086853,0.8106607,179.8,179.79,5.562]
[1721990091407,0.8106607,179.8,179.79,18.952]
[1721990094891,0.8106607,179.8,179.79,65.06401552]
[1721990095101,0.8106607,179.8,179.79,65.06399231]
[1721990096373,0.8106607,179.8,179.79,85.06399231]
[1721990099618,0.8106607,179.8,179.79,83.952]
[1721990100797,0.8106607,179.8,179.79,18.952]
[1721990101563,0.8106607,179.8,179.79,20.06406214]
[1721990101696,13.39,179.9,179.87,5.5593]
[1721990102229,15.12208276,179.92,179.87,5.5593]
[1721990102526,13.39,179.9,179.88,5.5591]
[1721990102824,20.68008276,179.92,179.9,5.5584]
[1721990102825,6.4042,179.92,179.9,5.5584]
[1721990103424,19.7942,179.92,179.88,19.4565]
[1721990103603,19.7942,179.92,179.89,5.5589]
[1721990104310,19.7942,179.92,179.88,13.8976]
[1721990104311,6.4042,179.92,179.88,19.4568]
[1721990104495,11.9623,179.92,179.88,13.8976]
[1721990105516,11.9623,179.92,179.82,27.8048]
[1721990105517,5.5584,179.91,179.86,5.5598]
[1721990109627,5.5587,179.9,179.86,5.5598]
[1721990109813,5.559,179.89,179.85,13.9003]
[1721990110333,5.5586,179.9,179.85,19.4604]
[1721990110750,5.5586,179.9,179.86,5.5598]
[1721990112719,5.5586,179.9,179.85,19.4603]
[1721990113635,13.8962,179.91,179.82,13.9024]
[1721990113957,5.5602,179.85,179.8,5.5616]
[1721990114121,5.5605,179.84,179.8,5.5616]
[1721990114326,5.5605,179.84,179.79,19.4667]
[1721990114849,5.5602,179.85,179.8,5.5617]
[1721990115731,5.5602,179.85,179.81,5.5613]
[1721990117760,5.5602,179.85,179.8,5.5616]
[1721990120154,6.0957,179.86,179.82,13.9025]
[1721990120461,6.0957,179.86,179.82,19.4635]
[1721990120958,6.0957,179.86,179.79,13.905]
[1721990121141,5.5604,179.85,179.8,5.5614]
[1721990121847,11.6556,179.86,179.81,5.5613]
[1721990122144,6.0957,179.86,179.82,5.561]
[1721990123753,11.6556,179.86,179.82,5.561]
[1721990124651,6.0957,179.86,179.82,5.561]
[1721990124952,11.6556,179.86,179.82,5.561]
[1721990126336,11.6556,179.86,179.81,32.8444]
[1721990128944,25.0356,179.86,179.81,19.4644]
[1721990129442,5.5602,179.85,179.81,19.4644]
[1721990130949,25.0356,179.86,179.81,19.4644]
[1721990131653,6.0957,179.86,179.84,5.5604]
[1721990132036,6.0957,179.86,179.82,18.9408]
[1721990132371,13.38,179.88,179.83,27.2813]
[1721990132661,13.38,179.88,179.84,5.5602]
[1721990132964,13.38,179.88,179.85,5.5601]
[1721990134728,13.38,179.88,179.84,5.5604]
[1721990134931,18.9391,179.89,179.84,5.5604]
[1721990136259,13.38,179.89,179.85,5.5601]
[1721990136578,13.38,179.89,179.85,6.6720371]
[1721990136761,13.38,179.89,179.86,5.5596]
[1721990138141,13.38,179.87,179.82,13.9026]
[1721990138463,13.38,179.84,179.82,13.9026]
[1721990139082,13.38,179.84,179.82,19.4636]
[1721990139354,60.1069,179.91,179.82,19.4636]
[1721990139355,13.38,179.85,179.82,19.4636]
[1721990139547,13.38,179.86,179.82,19.4636]
[1721990139851,13.38,179.87,179.82,13.9026]
[1721990140040,13.38,179.87,179.84,5.5603]
[1721990140755,13.38,179.87,179.83,5.5607]
[1721990141255,6.5869,179.91,179.84,13.9006]
[1721990141454,13.38,179.89,179.86,5.5597]
[1721990141757,13.38,179.88,179.85,5.5601]
[1721990142735,6.5869,179.91,179.87,5.5595]
[1721990142952,13.38,179.9,179.87,5.5595]
[1721990143161,12.4838405,179.92,179.87,5.5595]
[1721990143364,13.38,179.9,179.87,5.5595]
[1721990143968,25.8638405,179.92,179.87,5.5595]
[1721990144265,13.38,179.91,179.87,6.67128188]
[1721990144446,13.38,179.9,179.86,19.459]
[1721990144646,13.38,179.89,179.86,19.459]
[1721990147186,13.38,179.9,179.86,19.459]
[1721990148872,18.9384,179.91,179.86,19.459]
[1721990150280,13.38,179.9,179.86,19.459]
[1721990153259,11.8336,179.93,179.87,13.38]
[1721990153458,13.38,179.92,179.88,5.5592]
[1721990153863,13.38,179.92,179.89,5.5589]
[1721990154276,13.38,179.92,179.88,5.5591]
[1721990157087,18.938,179.92,179.88,5.5591]
[1721990157788,18.938,179.92,179.87,18.9394]
[1721990157969,18.938,179.92,179.87,5.5594]
[1721990158668,13.38,179.92,179.88,5.5591]
[1721990160467,13.38,179.9,179.82,30.151]
[1721990160670,21.7072,179.97,179.82,30.151]
[1721990160671,13.38,179.87,179.83,5.5607]
[1721990160863,21.5814,179.87,179.7,27.8227]
[1721990161188,13.38,179.79,179.74,32.8521]
[1721990161490,18.9421,179.79,179.74,13.9089]
[1721990161695,13.38,179.79,179.74,19.4722]
[1721990161892,13.38,179.79,179.75,5.5632]
[1721990163172,13.38,179.79,179.76,5.5629]
[1721990164393,13.38,179.78,179.76,5.5629]
[1721990164777,13.38,179.78,179.75,5.5632]
[1721990165412,13.38,179.78,179.76,5.5628]
[1721990168497,5.5614,179.81,179.76,5.5628]
[1721990168698,13.38,179.79,179.77,5.5626]
[1721990169674,13.38,179.79,179.78,5.5623]
[1721990170187,8.72127354,179.85,179.78,13.9053]
[1721990170392,21.5814,179.87,179.79,13.38]
[1721990170574,13.38,179.85,179.8,27.2837]
[1721990170898,13.38,179.86,179.81,13.38]
[1721990171095,5.5595,179.87,179.81,13.38]
[1721990171281,18.9395,179.87,179.81,13.38]
[1721990171490,13.38,179.87,179.83,5.5607]
[1721990171880,13.38,179.87,179.84,5.5603]
[1721990172291,13.38,179.88,179.84,5.5603]
[1721990172793,18.939,179.89,179.85,5.5601]
[1721990173000,13.38,179.9,179.86,5.5597]
[1721990173292,13.38,179.91,179.87,5.5595]
[1721990173798,13.38,179.93,179.9,5.5583]
[1721990173975,8.71692143,179.96,179.84,13.9005]
[1721990173976,13.38,179.91,179.84,13.9005]
[1721990174180,13.38,179.85,179.79,5.5618]
[1721990174481,13.38,179.82,179.77,34.2055]
[1721990174696,13.38,179.83,179.77,28.6432]
[1721990174896,13.38,179.84,179.81,5.5614]
[1721990175487,13.8984,179.88,179.78,5.5622]
[1721990175691,13.38,179.82,179.78,5.5622]
[1721990175890,13.38,179.79,179.57,29.1647]
[1721990176087,16.6064,179.8,179.61,13.38]
[1721990176088,13.38,179.66,179.61,13.38]
[1721990176403,13.9115,179.71,179.58,19.4892]
[1721990176404,13.38,179.64,179.58,19.4892]
[1721990176633,18.947,179.63,179.58,13.9208]
[1721990176788,13.38,179.59,179.53,32.8748]
[1721990176989,5.568,179.6,179.53,27.3049]
[1721990176990,13.38,179.58,179.53,27.3049]
[1721990177212,13.38,179.59,179.54,5.5696]
[1721990177582,13.38,179.59,179.55,5.5693]
[1721990177810,13.9146,179.67,179.55,13.38]
[1721990178018,45.0,179.66,179.57,13.38]
[1721990178191,5.5665,179.65,179.57,5.5685]
[1721990178384,45.0,179.66,179.56,13.9223]
[1721990178705,45.0,179.67,179.56,13.9223]
[1721990178891,26.83,179.71,179.59,13.9199]
[1721990179208,45.0,179.7,179.59,13.9199]
[1721990179600,71.83,179.71,179.59,13.9199]
[1721990179987,5.5656,179.68,179.62,5.5672]
[1721990180704,5.5651,179.69,179.62,13.9178]
[1721990180917,5.5654,179.68,179.62,19.485]
[1721990181112,26.83,179.71,179.6,5.5677]
[1721990181911,45.0,179.7,179.6,5.5677]
[1721990182099,5.5661,179.66,179.61,5.5675]
[1721990182612,5.5657,179.68,179.61,5.5675]
[1721990182809,45.0,179.67,179.61,5.5675]
[1721990183112,50.5657,179.67,179.61,5.5675]
[1721990184692,30.0,179.62,179.61,5.5675]
[1721990185003,30.0,179.62,179.59,5.568]
[1721990185812,5.5664,179.65,179.59,5.568]
[1721990186107,5.5664,179.65,179.6,5.5678]
[1721990186500,5.5667,179.64,179.58,19.4892]
[1721990186700,45.0,179.67,179.58,13.921]
[1721990187085,45.0,179.67,179.59,5.5681]
[1721990187086,5.5666,179.65,179.59,5.5681]
[1721990187287,45.0,179.64,179.59,5.5681]
[1721990187481,50.5667,179.64,179.59,5.5681]
[1721990187693,5.5663,179.66,179.6,5.5678]
[1721990187909,45.0,179.65,179.6,5.5678]
[1721990188410,50.5664,179.65,179.6,5.5678]
[1721990188801,30.0,179.61,179.6,5.5678]
[1721990190014,30.0,179.61,179.59,5.5682]
[1721990190208,30.0,179.61,179.58,13.921]
[1721990190419,30.0,179.61,179.58,19.4895]
[1721990190596,5.5682,179.59,179.54,19.4938]
[1721990190796,5.5706,179.52,179.46,5.5722]
[1721990191115,40.7521,179.57,179.37,21.9283]
[1721990191116,30.0,179.51,179.37,21.9283]
[1721990191290,30.0,179.51,179.43,5.5731]
[1721990191485,5.5716,179.48,179.37,21.9283]
[1721990191704,30.0,179.51,179.44,5.5728]
[1721990191909,45.0,179.5,179.44,5.5728]
[1721990192603,5.571,179.5,179.45,5.5725]
[1721990192794,40.7544,179.54,179.46,5.5722]
[1721990193016,45.0,179.53,179.46,13.9303]
[1721990193226,50.5703,179.53,179.47,5.5719]
[1721990193529,5.5705,179.52,179.47,5.5719]
[1721990193999,5.5711,179.5,179.45,5.5724]